[Event "Gibraltar Amateurs A 2020"]
[Site "Caleta"]
[Date "2020.01.21"]
[Round "1.9"]
[White "White, Gary"]
[Black "Kovacevic, Aleksandar S"]
[Result "1-0"]
[ECO "A03"]
[WhiteElo "1608"]
[BlackElo "1804"]
[Annotator "NA"]
[PlyCount "129"]
[EventDate "2020.01.20"]
[EventType "swiss"]
[EventCountry "GGB"]
[SourceTitle "playchess.com"]
[Source "ChessBase"]
[SourceQuality "1"]
[TimeControl "6600+10"]

1. f4 {[%emt 0:00:00]} d5 {[%emt 0:06:02]} 2. Nf3 {[%emt 0:00:04]} Nf6 {[%emt 0:00:32]} 3. d3 {[%emt 0:00:52]} Bg4 {[%emt 0:00:54]} 4. e3 {[%emt 0:05:03]} Nc6 {[%emt 0:00:46]} 5. Be2 {[%emt 0:00:12]} e6 {[%emt 0:01:40]} 6. O-O {[%emt 0:00:54]} Be7 {[%emt 0:01:30]} 7. Qe1 {[%emt 0:02:28]} Bxf3 {[%emt 0:05:15]} 8. Bxf3 {[%emt 0:00:34]} Qd6 {[%emt 0:03:58]} 9. e4 {[%emt 0:04:07]} dxe4 {[%emt 0:01:55]} 10. dxe4 {[%emt 0:00:35]} Qc5+ {[%emt 0:00:23]} 11. Rf2 {[%emt 0:01:03]} Qb6 {[%emt 0:01:37]} 12. Kh1 {[%emt 0:02:37]} Bc5 {[%emt 0:03:41]} 13. Rf1 {[%emt 0:02:34]} Nd4 {[%emt 0:00:55]} 14. Rf2 {[%emt 0:01:09]} Nb3 {[%emt 0:08:19]} 15. axb3 {[%emt 0:20:58]} Bxf2 {[%emt 0:00:54]} 16. Qe2 {[%emt 0:09:50]} Rd8 {[%emt 0:02:08]} 17. Na3 {[%emt 0:05:30]} Qd4 {[%emt 0:02:47]} 18. Nb5 {[%emt 0:01:02]} Qd7 {[%emt 0:02:15]} 19. e5 {[%emt 0:02:54]} Nd5 {[%emt 0:01:17]} 20. Qxf2 {[%emt 0:01:22]} Qxb5 {[%emt 0:01:48]} 21. c4 {[%emt 0:00:18]} Qxb3 {[%emt 0:00:42]} 22. cxd5 {[%emt 0:00:18]} exd5 {[%emt 0:01:08]} 23. Qc5 {[%emt 0:03:10]} b6 {[%emt 0:18:25]} 24. Qxc7 {[%emt 0:03:03]} O-O {[%emt 0:00:18]} 25. Qxa7 {[%emt 0:02:45]} d4 {[%emt 0:01:05]} 26. Qa4 {[%emt 0:09:29]} Qxa4 {[%emt 0:07:12]} 27. Rxa4 {[%emt 0:02:31]} Rc8 {[%emt 0:00:14]} 28. Ra1 {[%emt 0:00:31]} Rfd8 {[%emt 0:02:03]} 29. Be4 {[%emt 0:01:59]} d3 {[%emt 0:00:34]} 30. Bd2 {[%emt 0:00:06]} g6 {[%emt 0:00:41]} 31. Bc3 {[%emt 0:01:32]} b5 {[%emt 0:00:35]} 32. Rd1 {[%emt 0:02:53]} d2 {[%emt 0:02:39]} 33. Kg1 {[%emt 0:05:24]} Rc4 {[%emt 0:03:45]} 34. Bf3 {[%emt 0:06:14]} b4 {[%emt 0:04:33]} 35. Rxd2 {[%emt 0:00:05]} Rdc8 {[%emt 0:00:14]} 36. Bd4 {[%emt 0:01:02]} Rd8 {[%emt 0:03:04]} 37. Be3 {[%emt 0:00:17]} Rdc8 {[%emt 0:01:26]} 38. Kf2 {[%emt 0:01:36]} Rc2 {[%emt 0:02:17]} 39. Ke2 {[%emt 0:01:01]} h5 {[%emt 0:02:02]} 40. Be4 {[%emt 0:00:58]} R2c4 {[%emt 0:00:53]} 41. Bd5 {[%emt 0:00:26]} Rc2 {[%emt 0:01:37]} 42. e6 {[%emt 0:00:20]} Rxd2+ {[%emt 0:00:30]} 43. Kxd2 {[%emt 0:02:00]} Kf8 {[%emt 0:01:38]} 44. Bb3 {[%emt 0:00:36]} fxe6 {[%emt 0:00:20]} 45. Bxe6 {[%emt 0:00:43]} Rc6 {[%emt 0:00:35]} 46. f5 {[%emt 0:00:00]} gxf5 {[%emt 0:01:11]} 47. Bxf5 {[%emt 0:00:00]} Kf7 {[%emt 0:00:37]} 48. Be4 {[%emt 0:00:09]} Rc8 {[%emt 0:00:55]} 49. Bf3 {[%emt 0:00:19]} Kg6 {[%emt 0:00:28]} 50. Be4+ {[%emt 0:00:02]} Kf7 {[%emt 0:00:26]} 51. Bd4 {[%emt 0:00:02]} Rd8 {[%emt 0:01:20]} 52. Ke3 {[%emt 0:00:07]} Rc8 {[%emt 0:00:26]} 53. Kf4 {[%emt 0:00:13]} Ke7 {[%emt 0:00:33]} 54. Kg5 {[%emt 0:00:08]} Rc4 {[%emt 0:00:19]} 55. Bf6+ {[%emt 0:00:01]} Ke6 {[%emt 0:00:17]} 56. Bf5+ {[%emt 0:00:06]} Kf7 {[%emt 0:00:13]} 57. Bg6+ {[%emt 0:00:11]} Ke6 {[%emt 0:00:05]} 58. Bxh5 {[%emt 0:01:18]} Rc5+ {[%emt 0:00:48]} 59. Kg6 {[%emt 0:00:02]} Rc4 {[%emt 0:00:29]} 60. g4 {[%emt 0:00:16]} Rc8 {[%emt 0:00:16]} 61. g5 {[%emt 0:00:12]} Rc2 {[%emt 0:00:37]} 62. Bg4+ {[%emt 0:00:08]} Kd6 {[%emt 0:00:19]} 63. h4 Rg2 {[%emt 0:00:02]} 64. Bf5 {[%emt 0:00:08]} Rf2 {[%emt 0:00:55]} 65. h5 {[%emt 0:00:01]} 1-0

[Event "Gibraltar Amateurs A 2020"]
[Site "Caleta"]
[Date "2020.01.21"]
[Round "1.10"]
[White "Johansson, Daniel"]
[Black "Koreywo, Witold"]
[Result "1-0"]
[ECO "A13"]
[WhiteElo "1859"]
[BlackElo "1601"]
[Annotator "NA"]
[PlyCount "71"]
[EventDate "2020.01.20"]
[EventType "swiss"]
[EventCountry "GGB"]
[SourceTitle "playchess.com"]
[Source "ChessBase"]
[SourceQuality "1"]
[TimeControl "6600+10"]

1. Nf3 {[%emt 0:00:31]} d5 {[%emt 0:00:17]} 2. c4 {[%emt 0:01:46]} e6 {[%emt 0:00:32]} 3. b3 {[%emt 0:00:54]} c5 {[%emt 0:01:17]} 4. e3 {[%emt 0:02:55]} Nc6 {[%emt 0:01:52]} 5. Be2 {[%emt 0:01:36]} Nf6 {[%emt 0:01:25]} 6. O-O {[%emt 0:00:31]} Be7 {[%emt 0:01:07]} 7. Bb2 {[%emt 0:00:31]} O-O {[%emt 0:01:16]} 8. d4 {[%emt 0:01:21]} cxd4 {[%emt 0:04:00]} 9. Nxd4 {[%emt 0:02:00]} a6 {[%emt 0:05:16]} 10. Nxc6 {[%emt 0:06:14]} bxc6 {[%emt 0:00:21]} 11. Nc3 {[%emt 0:01:18]} Bb7 {[%emt 0:05:53]} 12. Qc2 {[%emt 0:06:34]} Rc8 {[%emt 0:04:40]} 13. Rfd1 {[%emt 0:07:11]} Qc7 {[%emt 0:02:26]} 14. Rac1 {[%emt 0:01:43]} c5 {[%emt 0:09:59]} 15. cxd5 {[%emt 0:01:50]} exd5 {[%emt 0:01:31]} 16. Na4 {[%emt 0:18:16]} Qc6 {[%emt 0:18:48]} 17. Bf3 {[%emt 0:06:24]} Rfd8 {[%emt 0:08:05]} 18. h3 {[%emt 0:01:23]} Rd7 {[%emt 0:15:29]} 19. Bxf6 {[%emt 0:07:47]} Qxf6 {[%emt 0:01:52]} 20. Bg4 {[%emt 0:02:25]} Rdd8 {[%emt 0:00:51]} 21. Bxc8 {[%emt 0:00:53]} Rxc8 {[%emt 0:00:25]} 22. Qe2 {[%emt 0:15:18]} Qc6 {[%emt 0:03:29]} 23. Qf3 {[%emt 0:00:41]} Qb5 {[%emt 0:02:23]} 24. Nc3 {[%emt 0:01:09]} Qa5 {[%emt 0:05:51]} 25. Nxd5 {[%emt 0:01:03]} Bxd5 {[%emt 0:00:39]} 26. Qxd5 {[%emt 0:03:01]} Rd8 {[%emt 0:01:17]} 27. Qc6 {[%emt 0:01:09]} Bh4 {[%emt 0:06:22]} 28. Rxd8+ {[%emt 0:01:02]} Qxd8 {[%emt 0:00:21]} 29. Qxc5 {[%emt 0:01:06]} Bxf2+ {[%emt 0:01:19]} 30. Kxf2 {[%emt 0:00:06]} Qf6+ {[%emt 0:00:23]} 31. Ke2 {[%emt 0:00:16]} h6 {[%emt 0:00:28]} 32. Qd4 {[%emt 0:01:50]} Qg5 {[%emt 0:00:51]} 33. Qe4 {[%emt 0:01:32]} f5 {[%emt 0:01:57]} 34. Qf3 {[%emt 0:00:45]} f4 {[%emt 0:00:39]} 35. Rc8+ {[%emt 0:00:45]} Kh7 {[%emt 0:00:18]} 36. Qe4+ {[%emt 0:00:14]} 1-0

[Event "Gibraltar Amateurs A 2020"]
[Site "Caleta"]
[Date "2020.01.21"]
[Round "1.11"]
[White "Hudson, Jeremy"]
[Black "Marani, Luca"]
[Result "0-1"]
[ECO "C54"]
[WhiteElo "1570"]
[BlackElo "1796"]
[Annotator "NA"]
[PlyCount "68"]
[EventDate "2020.01.20"]
[EventType "swiss"]
[EventCountry "GGB"]
[SourceTitle "playchess.com"]
[Source "ChessBase"]
[SourceQuality "1"]
[TimeControl "6600+10"]

1. e4 {[%emt 0:00:00]} e5 {[%emt 0:00:00]} 2. Nf3 {[%emt 0:00:00]} Nc6 {[%emt 0:00:07]} 3. Bc4 {[%emt 0:00:01]} Bc5 {[%emt 0:00:13]} 4. c3 {[%emt 0:00:06]} Nf6 {[%emt 0:00:15]} 5. d3 {[%emt 0:00:25]} a6 {[%emt 0:03:38]} 6. a4 {[%emt 0:05:23]} d6 {[%emt 0:01:40]} 7. O-O {[%emt 0:05:28]} Ba7 {[%emt 0:00:24]} 8. h3 {[%emt 0:10:47]} Bd7 {[%emt 0:03:27]} 9. Re1 {[%emt 0:12:00]} b5 {[%emt 0:07:47]} 10. Bb3 {[%emt 0:09:46]} Ne7 {[%emt 0:00:26]} 11. Nbd2 {[%emt 0:07:38]} O-O {[%emt 0:11:02]} 12. Nf1 {[%emt 0:00:41]} Ng6 {[%emt 0:03:37]} 13. Be3 {[%emt 0:09:16]} Qc8 {[%emt 0:09:03]} 14. Bxa7 {[%emt 0:26:24]} Rxa7 {[%emt 0:00:22]} 15. Kh2 {[%emt 0:00:53]} Nh5 {[%emt 0:05:39]} 16. Nxe5 {[%emt 0:00:43]} Nxe5 {[%emt 0:00:10]} 17. d4 {[%emt 0:04:26]} Nf4 {[%emt 0:13:45]} 18. dxe5 {[%emt 0:03:11]} Bxh3 {[%emt 0:03:53]} 19. e6 {[%emt 0:03:21]} bxa4 {[%emt 0:18:19]} 20. Rxa4 {[%emt 0:01:07]} Bxe6 {[%emt 0:02:23]} 21. Bxe6 {[%emt 0:03:18]} fxe6 {[%emt 0:02:40]} 22. e5 {[%emt 0:02:54]} d5 {[%emt 0:01:42]} 23. Qf3 {[%emt 0:02:24]} Ng6 {[%emt 0:02:13]} 24. Qg3 {[%emt 0:00:47]} c5 {[%emt 0:01:25]} 25. Rg4 {[%emt 0:00:14]} Raf7 {[%emt 0:01:58]} 26. f3 {[%emt 0:00:04]} Rf4 {[%emt 0:03:25]} 27. Rxf4 {[%emt 0:00:12]} Rxf4 {[%emt 0:00:40]} 28. Kg1 {[%emt 0:00:50]} Qb8 {[%emt 0:02:56]} 29. Qf2 {[%emt 0:00:56]} Nxe5 {[%emt 0:00:43]} 30. Qe3 {[%emt 0:00:14]} Ng6 {[%emt 0:06:00]} 31. Qxe6+ {[%emt 0:00:03]} Kh8 {[%emt 0:00:38]} 32. Re2 {[%emt 0:01:09]} Rf6 {[%emt 0:01:44]} 33. Qe8+ {[%emt 0:00:21]} Rf8 {[%emt 0:00:35]} 34. Qe6 {[%emt 0:00:10]} Nf4 {[%emt 0:00:24]} 0-1

[Event "Gibraltar Amateurs A 2020"]
[Site "Caleta"]
[Date "2020.01.21"]
[Round "1.13"]
[White "Dhanwani, Aditya"]
[Black "Dennis, Nigel W"]
[Result "0-1"]
[ECO "A48"]
[WhiteElo "1565"]
[BlackElo "1784"]
[Annotator "NA"]
[PlyCount "100"]
[EventDate "2020.01.20"]
[EventType "swiss"]
[EventCountry "GGB"]
[SourceTitle "playchess.com"]
[Source "ChessBase"]
[SourceQuality "1"]
[TimeControl "6600+10"]

1. d4 {[%emt 0:00:00]} Nf6 {[%emt 0:00:00]} 2. Nf3 {[%emt 0:00:18]} g6 {[%emt 0:00:17]} 3. Bf4 {[%emt 0:00:33]} Bg7 {[%emt 0:00:11]} 4. e3 {[%emt 0:00:17]} d6 {[%emt 0:01:10]} 5. h3 {[%emt 0:00:26]} O-O {[%emt 0:00:23]} 6. Nbd2 {[%emt 0:00:23]} Nbd7 {[%emt 0:00:41]} 7. c3 {[%emt 0:00:16]} c5 {[%emt 0:00:26]} 8. Be2 {[%emt 0:00:34]} b6 {[%emt 0:00:18]} 9. O-O {[%emt 0:00:18]} Bb7 {[%emt 0:00:06]} 10. Re1 {[%emt 0:00:26]} Ne4 {[%emt 0:03:01]} 11. Nxe4 {[%emt 0:13:09]} Bxe4 {[%emt 0:00:08]} 12. Bd3 {[%emt 0:03:30]} Bxd3 {[%emt 0:01:15]} 13. Qxd3 {[%emt 0:00:14]} a6 {[%emt 0:02:05]} 14. a4 {[%emt 0:25:40]} Qc7 {[%emt 0:04:56]} 15. Bh2 {[%emt 0:26:17]} Qb7 {[%emt 0:01:56]} 16. Ra2 {[%emt 0:05:27]} Nf6 {[%emt 0:05:07]} 17. Nd2 {[%emt 0:07:45]} Rfe8 {[%emt 0:03:56]} 18. a5 {[%emt 0:06:26]} b5 {[%emt 0:01:18]} 19. b4 {[%emt 0:06:33]} cxb4 {[%emt 0:00:38]} 20. cxb4 {[%emt 0:00:08]} Rac8 {[%emt 0:00:09]} 21. Rc2 {[%emt 0:01:27]} Nd5 {[%emt 0:03:30]} 22. Rb1 {[%emt 0:01:45]} Rxc2 {[%emt 0:00:19]} 23. Qxc2 {[%emt 0:00:05]} Rc8 {[%emt 0:00:18]} 24. Qd3 {[%emt 0:01:35]} Rc3 {[%emt 0:02:37]} 25. Qf1 {[%emt 0:00:25]} Qc6 {[%emt 0:01:01]} 26. e4 {[%emt 0:00:48]} Nxb4 {[%emt 0:01:52]} 27. d5 {[%emt 0:04:52]} Qc7 {[%emt 0:03:25]} 28. Nb3 {[%emt 0:01:38]} Nd3 {[%emt 0:04:22]} 29. Nd2 {[%emt 0:00:59]} Qxa5 {[%emt 0:08:12]} 30. Nf3 {[%emt 0:01:14]} Qa3 {[%emt 0:02:27]} 31. Ra1 {[%emt 0:00:37]} Qxa1 {[%emt 0:00:28]} 32. Qxa1 {[%emt 0:00:03]} Rc1+ {[%emt 0:00:11]} 33. Qxc1 {[%emt 0:00:01]} Nxc1 {[%emt 0:00:12]} 34. Kf1 {[%emt 0:00:01]} a5 {[%emt 0:00:39]} 35. Bf4 {[%emt 0:00:10]} Nd3 {[%emt 0:00:42]} 36. Bd2 {[%emt 0:00:05]} a4 {[%emt 0:02:28]} 37. Ke2 {[%emt 0:00:10]} Nb2 {[%emt 0:00:35]} 38. Bb4 {[%emt 0:00:42]} Nc4 {[%emt 0:00:16]} 39. Ne1 {[%emt 0:00:28]} a3 {[%emt 0:00:54]} 40. Nc2 {[%emt 0:00:11]} a2 {[%emt 0:00:20]} 41. Kd3 {[%emt 0:00:26]} a1=Q {[%emt 0:00:52]} 42. Nxa1 {[%emt 0:00:02]} Bxa1 {[%emt 0:00:25]} 43. Bc3 {[%emt 0:00:04]} Bxc3 {[%emt 0:00:12]} 44. Kxc3 {[%emt 0:00:02]} Ne5 {[%emt 0:00:37]} 45. Kb4 {[%emt 0:00:01]} Nd3+ {[%emt 0:00:24]} 46. Kxb5 {[%emt 0:00:01]} Nxf2 {[%emt 0:00:15]} 47. Kc6 {[%emt 0:00:18]} Nxe4 {[%emt 0:00:16]} 48. Kd7 {[%emt 0:00:03]} Nf6+ {[%emt 0:01:16]} 49. Kxe7 {[%emt 0:00:08]} Nxd5+ {[%emt 0:00:13]} 50. Kxd6 {[%emt 0:00:08]} Nf4 {[%emt 0:00:09]} 0-1

[Event "Gibraltar Amateurs A 2020"]
[Site "Caleta"]
[Date "2020.01.21"]
[Round "1.14"]
[White "Dragic, Dragan"]
[Black "Naldrett, Geoffrey"]
[Result "1-0"]
[ECO "E38"]
[WhiteElo "1781"]
[BlackElo "1526"]
[Annotator "NA"]
[PlyCount "81"]
[EventDate "2020.01.20"]
[EventType "swiss"]
[EventCountry "GGB"]
[SourceTitle "playchess.com"]
[Source "ChessBase"]
[SourceQuality "1"]
[TimeControl "6600+10"]

1. d4 {[%emt 0:03:50]} Nf6 {[%emt 0:00:00]} 2. c4 {[%emt 0:00:41]} e6 {[%emt 0:00:00]} 3. Nc3 {[%emt 0:00:23]} Bb4 {[%emt 0:00:03]} 4. Qc2 {[%emt 0:00:26]} c5 {[%emt 0:00:35]} 5. Nf3 {[%emt 0:01:05]} O-O {[%emt 0:00:32]} 6. e3 {[%emt 0:01:24]} d5 {[%emt 0:00:50]} 7. Bd3 {[%emt 0:03:21]} dxc4 {[%emt 0:03:54]} 8. Bxc4 {[%emt 0:00:53]} Nc6 {[%emt 0:06:31]} 9. a3 {[%emt 0:06:17]} Qa5 {[%emt 0:10:06]} 10. Bd2 {[%emt 0:28:44]} cxd4 {[%emt 0:05:38]} 11. exd4 {[%emt 0:03:03]} Be7 {[%emt 0:11:29]} 12. O-O {[%emt 0:01:56]} Qd8 {[%emt 0:07:22]} 13. Ne2 {[%emt 0:09:05]} Bd7 {[%emt 0:04:14]} 14. Rac1 {[%emt 0:05:28]} Rc8 {[%emt 0:00:18]} 15. Qd3 {[%emt 0:02:46]} Na5 {[%emt 0:03:26]} 16. Ba2 {[%emt 0:04:03]} Qb6 {[%emt 0:05:12]} 17. b4 {[%emt 0:14:47]} Bb5 {[%emt 0:04:38]} 18. Qe3 {[%emt 0:03:27]} Nc4 {[%emt 0:01:00]} 19. Bxc4 {[%emt 0:00:28]} Bxc4 {[%emt 0:01:11]} 20. Rfe1 {[%emt 0:01:13]} Nd5 {[%emt 0:04:35]} 21. Qe4 {[%emt 0:01:15]} f5 {[%emt 0:02:45]} 22. Qb1 {[%emt 0:00:25]} Bf6 {[%emt 0:03:47]} 23. Nf4 {[%emt 0:04:18]} Nxf4 {[%emt 0:01:56]} 24. Bxf4 {[%emt 0:00:08]} Bxd4 {[%emt 0:14:39]} 25. Nxd4 {[%emt 0:00:16]} Qxd4 {[%emt 0:00:03]} 26. Be3 {[%emt 0:00:44]} Qf6 {[%emt 0:02:30]} 27. Bc5 {[%emt 0:00:16]} b6 {[%emt 0:02:30]} 28. Bxf8 {[%emt 0:00:40]} Qxf8 {[%emt 0:00:06]} 29. a4 {[%emt 0:00:44]} Bd5 {[%emt 0:01:59]} 30. b5 {[%emt 0:01:23]} Rc5 {[%emt 0:01:20]} 31. Rxc5 {[%emt 0:00:19]} bxc5 {[%emt 0:00:06]} 32. a5 {[%emt 0:00:28]} Qb8 {[%emt 0:01:08]} 33. Qb2 {[%emt 0:00:37]} a6 {[%emt 0:00:50]} 34. b6 {[%emt 0:00:08]} Qb7 {[%emt 0:00:18]} 35. Qe5 {[%emt 0:00:26]} Kf7 {[%emt 0:00:47]} 36. Qc7+ {[%emt 0:01:25]} Kf6 {[%emt 0:00:28]} 37. Qxb7 {[%emt 0:02:47]} Bxb7 {[%emt 0:00:03]} 38. Rc1 {[%emt 0:00:06]} Ke5 {[%emt 0:00:42]} 39. Rxc5+ {[%emt 0:00:08]} Kd6 {[%emt 0:00:02]} 40. Rc7 {[%emt 0:00:18]} g5 {[%emt 0:00:26]} 41. Rxb7 {[%emt 0:00:08]} 1-0

[Event "Gibraltar Amateurs A 2020"]
[Site "Caleta"]
[Date "2020.01.21"]
[Round "1.15"]
[White "Busch, Guenther"]
[Black "Anjali R. Sagar"]
[Result "0-1"]
[ECO "A09"]
[WhiteElo "1520"]
[BlackElo "1775"]
[Annotator "NA"]
[PlyCount "44"]
[EventDate "2020.01.20"]
[EventType "swiss"]
[EventCountry "GGB"]
[SourceTitle "playchess.com"]
[Source "ChessBase"]
[SourceQuality "1"]
[TimeControl "6600+10"]

1. Nf3 {[%emt 0:00:01]} Nf6 {[%emt 0:00:00]} 2. c4 {[%emt 0:00:20]} d5 {[%emt 0:00:24]} 3. e3 {[%emt 0:00:54]} Bg4 {[%emt 0:00:35]} 4. Be2 {[%emt 0:01:19]} e6 {[%emt 0:00:21]} 5. cxd5 {[%emt 0:01:26]} exd5 {[%emt 0:00:11]} 6. Qa4+ {[%emt 0:00:40]} c6 {[%emt 0:00:33]} 7. Nc3 {[%emt 0:01:39]} Nbd7 {[%emt 0:01:11]} 8. Qc2 {[%emt 0:01:35]} Bd6 {[%emt 0:01:59]} 9. d4 {[%emt 0:00:56]} Qc7 {[%emt 0:01:01]} 10. h3 {[%emt 0:01:18]} Bh5 {[%emt 0:00:30]} 11. e4 {[%emt 0:04:56]} Bg6 {[%emt 0:02:02]} 12. Bd3 {[%emt 0:00:46]} dxe4 {[%emt 0:00:50]} 13. Nxe4 {[%emt 0:00:39]} Nxe4 {[%emt 0:00:31]} 14. Bxe4 {[%emt 0:00:12]} O-O {[%emt 0:00:32]} 15. O-O {[%emt 0:00:45]} Rae8 {[%emt 0:01:51]} 16. Bxg6 {[%emt 0:04:10]} hxg6 {[%emt 0:00:39]} 17. Bg5 {[%emt 0:02:18]} Bf4 {[%emt 0:02:20]} 18. Rae1 {[%emt 0:01:25]} Bxg5 {[%emt 0:01:47]} 19. Nxg5 {[%emt 0:00:16]} Qf4 {[%emt 0:00:29]} 20. Nf3 {[%emt 0:00:55]} Nf6 {[%emt 0:10:55]} 21. Qd2 {[%emt 0:00:35]} Nd5 {[%emt 0:03:38]} 22. g3 {[%emt 0:00:30]} Qxf3 {[%emt 0:00:54]} 0-1

[Event "Gibraltar Amateurs A 2020"]
[Site "Caleta"]
[Date "2020.01.21"]
[Round "1.17"]
[White "Davies, Cledwyn"]
[Black "Bussmann, John"]
[Result "0-1"]
[ECO "B27"]
[WhiteElo "1507"]
[BlackElo "1752"]
[Annotator "NA"]
[PlyCount "76"]
[EventDate "2020.01.20"]
[EventType "swiss"]
[EventCountry "GGB"]
[SourceTitle "playchess.com"]
[Source "ChessBase"]
[SourceQuality "1"]
[TimeControl "6600+10"]

1. e4 {[%emt 0:00:00]} c5 {[%emt 0:00:16]} 2. Nf3 {[%emt 0:00:19]} g6 {[%emt 0:00:35]} 3. d4 {[%emt 0:00:58]} cxd4 {[%emt 0:01:04]} 4. Nxd4 {[%emt 0:01:33]} Bg7 {[%emt 0:00:18]} 5. Bc4 {[%emt 0:03:40]} Nf6 {[%emt 0:04:35]} 6. Nc3 {[%emt 0:02:36]} Qc7 {[%emt 0:08:26]} 7. Bb3 {[%emt 0:07:03]} a6 {[%emt 0:03:00]} 8. Be3 {[%emt 0:01:28]} Nc6 {[%emt 0:03:46]} 9. Qd2 {[%emt 0:02:27]} O-O {[%emt 0:10:51]} 10. O-O-O {[%emt 0:01:04]} Ng4 {[%emt 0:14:51]} 11. Nxc6 {[%emt 0:08:40]} dxc6 {[%emt 0:01:40]} 12. f3 {[%emt 0:04:49]} Nxe3 {[%emt 0:01:01]} 13. Qxe3 {[%emt 0:00:07]} Be5 {[%emt 0:03:06]} 14. Ne2 {[%emt 0:04:15]} c5 {[%emt 0:02:32]} 15. a3 {[%emt 0:09:41]} c4 {[%emt 0:06:10]} 16. Ba2 {[%emt 0:01:27]} c3 {[%emt 0:07:43]} 17. Kb1 {[%emt 0:07:25]} cxb2 {[%emt 0:01:04]} 18. f4 {[%emt 0:02:44]} Bg7 {[%emt 0:01:21]} 19. e5 {[%emt 0:04:15]} b5 {[%emt 0:04:19]} 20. Rd3 {[%emt 0:04:14]} Bf5 {[%emt 0:02:45]} 21. Rc3 {[%emt 0:03:58]} Qd7 {[%emt 0:01:02]} 22. Nd4 {[%emt 0:05:39]} Rfd8 {[%emt 0:02:59]} 23. Nxf5 {[%emt 0:04:46]} Qxf5 {[%emt 0:00:12]} 24. Rd3 {[%emt 0:03:20]} Rxd3 {[%emt 0:01:42]} 25. cxd3 {[%emt 0:00:48]} Rd8 {[%emt 0:00:11]} 26. Rd1 {[%emt 0:01:30]} Qh5 {[%emt 0:00:27]} 27. Qg1 {[%emt 0:03:55]} Qe2 {[%emt 0:02:09]} 28. d4 {[%emt 0:01:48]} Rc8 {[%emt 0:02:29]} 29. Bb3 {[%emt 0:03:23]} Rc3 {[%emt 0:01:31]} 30. Qe1 {[%emt 0:05:47]} Qxe1 {[%emt 0:00:51]} 31. Bxf7+ {[%emt 0:02:07]} Kxf7 {[%emt 0:00:22]} 32. Rxe1 {[%emt 0:00:28]} Rxa3 {[%emt 0:00:50]} 33. Kxb2 {[%emt 0:00:59]} Rd3 {[%emt 0:00:15]} 34. Ra1 {[%emt 0:01:02]} Rxd4 {[%emt 0:00:25]} 35. Rxa6 {[%emt 0:00:36]} Rxf4 {[%emt 0:00:14]} 36. Kb3 {[%emt 0:01:19]} Bxe5 {[%emt 0:00:14]} 37. g3 {[%emt 0:01:03]} Rf2 {[%emt 0:00:42]} 38. Rb6 {[%emt 0:00:25]} Rxh2 {[%emt 0:00:13]} 0-1

[Event "Gibraltar Amateurs A 2020"]
[Site "Caleta"]
[Date "2020.01.21"]
[Round "1.18"]
[White "Sagar Siya"]
[Black "Haddock, Paul"]
[Result "1-0"]
[ECO "B33"]
[WhiteElo "1740"]
[BlackElo "1498"]
[Annotator "NA"]
[PlyCount "80"]
[EventDate "2020.01.20"]
[EventType "swiss"]
[EventCountry "GGB"]
[SourceTitle "playchess.com"]
[Source "ChessBase"]
[SourceQuality "1"]
[TimeControl "6600+10"]

1. e4 {[%emt 1:04:00]} c5 {[%emt 0:00:28]} 2. Nf3 {[%emt 0:00:09]} Nc6 {[%emt 0:00:22]} 3. d4 {[%emt 0:00:10]} cxd4 {[%emt 0:00:11]} 4. Nxd4 {[%emt 0:00:09]} Nf6 {[%emt 0:00:26]} 5. Nc3 {[%emt 0:00:10]} d6 {[%emt 0:08:49]} 6. f3 {[%emt 0:00:56]} e5 {[%emt 0:07:08]} 7. Ndb5 {[%emt 0:01:20]} a6 {[%emt 0:02:12]} 8. Na3 {[%emt 0:00:26]} b5 {[%emt 0:03:50]} 9. Nd5 {[%emt 0:00:16]} Be7 {[%emt 0:06:43]} 10. c3 {[%emt 0:00:30]} Be6 {[%emt 0:06:07]} 11. Be3 {[%emt 0:02:51]} Rb8 {[%emt 0:06:15]} 12. Qd2 {[%emt 0:04:07]} O-O {[%emt 0:11:33]} 13. Rd1 {[%emt 0:01:12]} Bxd5 {[%emt 0:03:35]} 14. exd5 {[%emt 0:00:49]} Na5 {[%emt 0:01:30]} 15. Be2 {[%emt 0:01:24]} Rc8 {[%emt 0:05:59]} 16. O-O {[%emt 0:02:12]} Nd7 {[%emt 0:01:15]} 17. b4 {[%emt 0:03:28]} Nc4 {[%emt 0:01:16]} 18. Nxc4 {[%emt 0:00:31]} bxc4 {[%emt 0:00:11]} 19. a4 {[%emt 0:00:26]} f5 {[%emt 0:03:30]} 20. f4 {[%emt 0:03:45]} e4 {[%emt 0:03:58]} 21. Qa2 {[%emt 0:00:59]} Qc7 {[%emt 0:04:49]} 22. Rd4 {[%emt 0:00:58]} Qb7 {[%emt 0:02:51]} 23. Rfd1 {[%emt 0:04:11]} Bf6 {[%emt 0:01:33]} 24. Rxc4 {[%emt 0:00:50]} Rxc4 {[%emt 0:01:28]} 25. Qxc4 {[%emt 0:00:14]} Rc8 {[%emt 0:02:11]} 26. Qxa6 {[%emt 0:01:41]} Qxa6 {[%emt 0:00:48]} 27. Bxa6 {[%emt 0:00:09]} Rxc3 {[%emt 0:00:37]} 28. Bd4 {[%emt 0:01:30]} Bxd4+ {[%emt 0:02:32]} 29. Rxd4 {[%emt 0:00:09]} e3 {[%emt 0:11:33]} 30. Kf1 {[%emt 0:01:12]} Nf6 {[%emt 0:04:56]} 31. Rd3 {[%emt 0:03:01]} Rxd3 {[%emt 0:01:28]} 32. Bxd3 {[%emt 0:00:12]} Kf8 {[%emt 0:00:56]} 33. Bc4 {[%emt 0:02:49]} Ne4 {[%emt 0:00:16]} 34. Ke1 {[%emt 0:00:29]} Ke7 {[%emt 0:00:48]} 35. a5 {[%emt 0:00:49]} Kd8 {[%emt 0:00:06]} 36. Ke2 {[%emt 0:00:35]} Kc7 {[%emt 0:02:35]} 37. Kxe3 {[%emt 0:00:45]} g6 {[%emt 0:00:35]} 38. g4 {[%emt 0:02:48]} Kb7 {[%emt 0:00:56]} 39. gxf5 {[%emt 0:00:12]} gxf5 {[%emt 0:00:02]} 40. Bd3 {[%emt 0:00:22]} Nf6 {[%emt 0:01:05]} 1-0